Workbook

Sheet Kezdés
B1: A SABLON ISMERTETÉSE
B2: Ezzel a sablonnal értékesítési marketing-költségvetést készíthet.
B3: A táblázatban megadhatja a havi várható értékesítést és más adatokat.
B4: A sablon automatikusan kiszámítja a végösszegeket, és frissíti az értékgörbéket.
B5: Megjegyzés:
B6: Az ÉRTÉKESÍTÉSI MARKETING-KÖLTSÉGVETÉS munkalap A oszlopában további útmutatást olvashat. Ez a szöveg szándékosan van elrejtve. Ha törölni szeretné a szöveget, jelölje ki az A oszlopot, majd nyomja le a DELETE billentyűt. Ha láthatóvá szeretné tenni a szöveget, jelölje ki az A oszlopot, majd módosítsa a betűszínt.
B7: Ha többet szeretne megtudni a táblázatokról, nyomja le a SHIFT+F10 billentyűkombinációt egy táblázaton belül, válassza a TÁBLÁZAT parancsot, majd a HELYETTESÍTŐ SZÖVEG elemet.

Sheet Csatornamarketing költségvetése
A1: Ezen a munkalapon értékesítési marketing-költségvetést készíthet. A jobbra lévő cellában szerepel a munkalap címe. Ebben az oszlopban hasznos utasítások szerepelnek. Első lépésként nyomja le a Le nyílbillentyűt. A jobbra lévő cellában szerepel a munkalap címe. | B1: ÉRTÉKESÍTÉSI MARKETING-KÖLTSÉGVETÉS
A2: Ebben a sorban szerepel az Arány és a Hónapok címke, a C2–O2 cellákban, valamint az Összesen címke a Q2 cellában. | C2: Arány | D2: 1. hónap | E2: 2. hónap | F2: 3. hónap | G2: 4. hónap | H2: 5. hónap | I2: 6. hónap | J2: 7. hónap | K2: 8. hónap | L2: 9. hónap | M2: 10. hónap | N2: 11. hónap | O2: 12. hónap | Q2: Összesen
A3: A jobbra lévő cellában szerepel az várható értékesítés összesen címkéje. A D3–O3 cellákban adhatja meg a havi várható értékesítést. A Q3 cellában a program automatikusan kiszámítja a összesen. | B3: VÁRHATÓ ÉRTÉKESÍTÉS ÖSSZESEN (000) Ft | D3: 750 | E3: 200 | F3: 500 | G3: 1,500 | H3: 1,200 | I3: 1,500 | J3: 1,500 | K3: 1,800 | L3: 2,000 | M3: 2,000 | N3: 2,000 | O3: 2,000 | Q3: =SUM(D3:O3) -> 16,950
A4: A jobbra lévő cellában kezdődő Személyzet táblázatban adhatja meg az adatokat. A táblázat végén a sablon automatikusan kiszámítja a személyzet teljes havi értékesítését, a Q9 cellában pedig az éves összesen. Az S9 cellában automatikusan frissül az értékgörbe. A következő utasítás az A10 cellában található. | B4: Személyzet – tételek | C4: Arány | D4: 1. hónap | E4: 2. hónap | F4: 3. hónap | G4: 4. hónap | H4: 5. hónap | I4: 6. hónap | J4: 7. hónap | K4: 8. hónap | L4: 9. hónap | M4: 10. hónap | N4: 11. hónap | O4: 12. hónap
B5: SZEMÉLYZET (A TELJES ÉRTÉKESÍTÉS %-A) | D5: =D11+D33+D41+D48 -> 110% | E5: 110% | F5: 110% | G5: 110% | H5: 110% | I5: 110% | J5: 110% | K5: 110% | L5: 85% | M5: 85% | N5: 85% | O5: 85%
B6: Emberi erőforrások – Létszám | C6: 5 | D6: =+$C$6 -> 5 | E6: 5 | F6: 5 | G6: 5 | H6: 5 | I6: 5 | J6: 5 | K6: 5 | L6: 5 | M6: 5 | N6: 5 | O6: 5
B7: Emberi erőforrások – Költség | D7: =$C$6*D6 -> 25.00 | E7: 25.00 | F7: 25.00 | G7: 25.00 | H7: 25.00 | I7: 25.00 | J7: 25.00 | K7: 25.00 | L7: 25.00 | M7: 25.00 | N7: 25.00 | O7: 25.00 | Q7: =SUM('Csatornamarketing költségvetése'!$D7:$O7) -> 300.00
B8: Jutalék | C8: 0.10% | D8: =D3*$C$8 -> 0.75 | E8: 0.20 | F8: 0.50 | G8: 1.50 | H8: 1.20 | I8: 1.50 | J8: 1.50 | K8: 1.80 | L8: 2.00 | M8: 2.00 | N8: 2.00 | O8: 2.00 | Q8: =SUM('Csatornamarketing költségvetése'!$D8:$O8) -> 16.95
B9: Személyzet összesen (000) Ft | D9: =SUM(D7:D8) -> 25.75 | E9: =SUM(E7:E8) -> 25.20 | F9: 25.50 | G9: 26.50 | H9: 26.20 | I9: 26.50 | J9: 26.50 | K9: 26.80 | L9: 27.00 | M9: 27.00 | N9: 27.00 | O9: 27.00 | Q9: =SUM(Q7:Q8) -> 316.95
A10: A jobbra lévő cellában kezdődő Direktmarketing táblázatban adhatja meg az adatokat. A táblázat végén a sablon automatikusan kiszámítja a telemarketing teljes havi értékesítését, a Q17 cellában pedig az éves összesen. Az S17 cellában automatikusan frissül az értékgörbe. A következő utasítás az A18 cellában található. | B10: Direktmarketing – tételek | C10: Arány | D10: 1. hónap | E10: 2. hónap | F10: 3. hónap | G10: 4. hónap | H10: 5. hónap | I10: 6. hónap | J10: 7. hónap | K10: 8. hónap | L10: 9. hónap | M10: 10. hónap | N10: 11. hónap | O10: 12. hónap
B11: DIREKTMARKETING (A TELJES ÉRTÉKESÍTÉS %-A) | D11: 100% | E11: 100% | F11: 75% | G11: 40% | H11: 33% | I11: 25% | J11: 20% | K11: 10% | L11: 5% | M11: 5% | N11: 5% | O11: 5%
B12: Telemarketing (a közvetlen értékesítés %-a) | D12: 100% | E12: 50% | F12: 50% | G12: 50% | H12: 50% | I12: 50% | J12: 50% | K12: 50% | L12: 50% | M12: 50% | N12: 50% | O12: 50%
B13: Emberi erőforrások – Létszám | C13: 3 | D13: =$C$13*D12 -> 3 | E13: 1.5 | F13: 1.5 | G13: 1.5 | H13: 1.5 | I13: 1.5 | J13: 1.5 | K13: 1.5 | L13: 1.5 | M13: 1.5 | N13: 1.5 | O13: 1.5 | Q13: =SUM('Csatornamarketing költségvetése'!$D13:$O13) -> 19.50
B14: Infrastruktúra-támogatás | D14: 25 | E14: 10 | F14: 25 | G14: 10 | H14: 25 | I14: 10 | J14: 25 | K14: 10 | L14: 25 | M14: 10 | N14: 25 | O14: 10 | Q14: =SUM('Csatornamarketing költségvetése'!$D14:$O14) -> 210.00
B15: Jutalék | C15: 0.10% | D15: =$C$15*D3*D11*D12 -> 0.75 | E15: 0.10 | F15: 0.19 | G15: 0.30 | H15: 0.20 | I15: 0.19 | J15: 0.15 | K15: 0.09 | L15: 0.05 | M15: 0.05 | N15: 0.05 | O15: 0.05 | Q15: =SUM('Csatornamarketing költségvetése'!$D15:$O15) -> 2.16
B16: Oktatás | D16: 25 | E16: 10 | F16: 25 | G16: 10 | H16: 25 | I16: 10 | J16: 25 | K16: 10 | L16: 25 | M16: 10 | N16: 25 | O16: 10 | Q16: =SUM('Csatornamarketing költségvetése'!$D16:$O16) -> 210.00
B17: Telemarketing összesen (000) Ft | D17: =SUM(D13:D16) -> 53.75 | E17: =SUM(E13:E16) -> 21.60 | F17: =SUM(F13:F16) -> 51.69 | G17: 21.80 | H17: 51.70 | I17: 21.69 | J17: 51.65 | K17: 21.59 | L17: 51.55 | M17: 21.55 | N17: 51.55 | O17: 21.55 | Q17: =SUM(Q13:Q16) -> 441.66
A18: A jobbra lévő cellában kezdődő Internetes marketing táblázatban adhatja meg az adatokat. A táblázat végén a sablon automatikusan kiszámítja az internetes marketing teljes értékesítését, a Q24 cellában pedig az éves összesen. Az S24 cellában automatikusan frissül az értékgörbe. A következő utasítás az A25 cellában található. | B18: Internetes marketing – tételek | C18: Arány | D18: 1. hónap | E18: 2. hónap | F18: 3. hónap | G18: 4. hónap | H18: 5. hónap | I18: 6. hónap | J18: 7. hónap | K18: 8. hónap | L18: 9. hónap | M18: 10. hónap | N18: 11. hónap | O18: 12. hónap
B19: Internetes marketing (a közvetlen értékesítés %-a) | D19: 25% | E19: 25% | F19: 25% | G19: 25% | H19: 25% | I19: 25% | J19: 25% | K19: 25% | L19: 25% | M19: 25% | N19: 25% | O19: 25%
B20: Emberi erőforrások – Létszám | C20: 1 | D20: =$C$20*D19 -> 0.25 | E20: 0.25 | F20: 0.25 | G20: 0.25 | H20: 0.25 | I20: 0.25 | J20: 0.25 | K20: 0.25 | L20: 0.25 | M20: 0.25 | N20: 0.25 | O20: 0.25 | Q20: =SUM('Csatornamarketing költségvetése'!$D20:$O20) -> 3.00
B21: Webhelyfejlesztés (egyszeri költség) | D21: 500 | Q21: =SUM('Csatornamarketing költségvetése'!$D21:$O21) -> 500.00
B22: Üzemeltetés | D22: 10 | E22: 10 | F22: 10 | G22: 10 | H22: 10 | I22: 10 | J22: 10 | K22: 10 | L22: 10 | M22: 10 | N22: 10 | O22: 10 | Q22: =SUM('Csatornamarketing költségvetése'!$D22:$O22) -> 120.00
B23: Támogatás és karbantartás | D23: 25 | N23: 25 | Q23: =SUM('Csatornamarketing költségvetése'!$D23:$O23) -> 50.00
B24: Internetes marketing összesen (000) Ft | D24: =SUM(D20:D23) -> 535.25 | E24: =SUM(E20:E23) -> 10.25 | F24: 10.25 | G24: 10.25 | H24: 10.25 | I24: 10.25 | J24: 10.25 | K24: 10.25 | L24: 10.25 | M24: 10.25 | N24: 35.25 | O24: 10.25 | Q24: =SUM(Q20:Q23) -> 673.00
A25: A jobbra lévő cellában kezdődő Reklámlevél táblázatban adhatja meg az adatokat. A táblázat végén a sablon automatikusan kiszámítja a reklámlevél teljes havi értékesítését, a Q30 cellában pedig az éves összesen. A következő utasítás az A31 cellában található. | B25: Reklámlevél – tételek | C25: Arány | D25: 1. hónap | E25: 2. hónap | F25: 3. hónap | G25: 4. hónap | H25: 5. hónap | I25: 6. hónap | J25: 7. hónap | K25: 8. hónap | L25: 9. hónap | M25: 10. hónap | N25: 11. hónap | O25: 12. hónap
B26: Reklámlevél (a közvetlen értékesítés %-a)
B27: Emberi erőforrások – Költség | Q27: =SUM('Csatornamarketing költségvetése'!$D27:$O27) -> 0.00
B28: Anyag | D28: 1000 | E28: 1000 | F28: 1000 | G28: 1000 | H28: 1000 | I28: 1000 | J28: 1000 | K28: 1000 | L28: 1000 | M28: 1000 | N28: 1000 | O28: 1000 | Q28: =SUM('Csatornamarketing költségvetése'!$D28:$O28) -> 12,000.00
B29: Postaköltség | D29: 250 | E29: 250 | F29: 250 | G29: 250 | H29: 250 | I29: 250 | J29: 250 | K29: 250 | L29: 250 | M29: 250 | N29: 250 | O29: 250 | Q29: =SUM('Csatornamarketing költségvetése'!$D29:$O29) -> 3,000.00
B30: Reklámlevél összesen (000) Ft | D30: =SUM(D27:D29) -> 1,250.00 | E30: =SUM(E27:E29) -> 1,250.00 | F30: 1,250.00 | G30: 1,250.00 | H30: 1,250.00 | I30: 1,250.00 | J30: 1,250.00 | K30: 1,250.00 | L30: 1,250.00 | M30: 1,250.00 | N30: 1,250.00 | O30: 1,250.00 | Q30: =SUM(Q27:Q29) -> 15,000.00
A31: Ebben a sorban a sablon automatikusan kiszámítja a direktmarketing teljes értékesítését, a D31–O31 cellákban, valamint az éves végösszeget a Q31 cellában. Az S31 cellában automatikusan frissül az értékgörbe. | B31: Direktmarketing összesen (000) Ft | D31: =SUM(Levélreklám[[#Totals],[1. hónap]],InternetesMarketing[[#Totals],[1. hónap]],DirektMarketing[[#Totals],[1. hónap]]) -> 1,839.00 | E31: =SUM(Levélreklám[[#Totals],[2. hónap]],InternetesMarketing[[#Totals],[2. hónap]],DirektMarketing[[#Totals],[2. hónap]]) -> 1,281.85 | F31: =SUM(Levélreklám[[#Totals],[3. hónap]],InternetesMarketing[[#Totals],[3. hónap]],DirektMarketing[[#Totals],[3. hónap]]) -> 1,311.94 | G31: =SUM(Levélreklám[[#Totals],[4. hónap]],InternetesMarketing[[#Totals],[4. hónap]],DirektMarketing[[#Totals],[4. hónap]]) -> 1,282.05 | H31: =SUM(Levélreklám[[#Totals],[5. hónap]],InternetesMarketing[[#Totals],[5. hónap]],DirektMarketing[[#Totals],[5. hónap]]) -> 1,311.95 | I31: =SUM(Levélreklám[[#Totals],[6. hónap]],InternetesMarketing[[#Totals],[6. hónap]],DirektMarketing[[#Totals],[6. hónap]]) -> 1,281.94 | J31: =SUM(Levélreklám[[#Totals],[7. hónap]],InternetesMarketing[[#Totals],[7. hónap]],DirektMarketing[[#Totals],[7. hónap]]) -> 1,311.90 | K31: =SUM(Levélreklám[[#Totals],[8. hónap]],InternetesMarketing[[#Totals],[8. hónap]],DirektMarketing[[#Totals],[8. hónap]]) -> 1,281.84 | L31: =SUM(Levélreklám[[#Totals],[9. hónap]],InternetesMarketing[[#Totals],[9. hónap]],DirektMarketing[[#Totals],[9. hónap]]) -> 1,311.80 | M31: =SUM(Levélreklám[[#Totals],[10. hónap]],InternetesMarketing[[#Totals],[10. hónap]],DirektMarketing[[#Totals],[10. hónap]]) -> 1,281.80 | N31: =SUM(Levélreklám[[#Totals],[11. hónap]],InternetesMarketing[[#Totals],[11. hónap]],DirektMarketing[[#Totals],[11. hónap]]) -> 1,336.80 | O31: =SUM(Levélreklám[[#Totals],[12. hónap]],InternetesMarketing[[#Totals],[12. hónap]],DirektMarketing[[#Totals],[12. hónap]]) -> 1,281.80 | Q31: =SUM(Q30,Q24,Q17,Q9) -> 16,431.61
A32: A jobbra lévő cellában kezdődő Ügynök és bróker táblázatban adhatja meg az adatokat. A táblázat végén a sablon automatikusan kiszámítja az ügynök és bróker teljes havi értékesítését, a Q39 cellában pedig az éves összesen. Az S39 cellában automatikusan frissül az értékgörbe. A következő utasítás az A40 cellában található. | B32: Ügynök/bróker – tételek | C32: Arány | D32: 1. hónap | E32: 2. hónap | F32: 3. hónap | G32: 4. hónap | H32: 5. hónap | I32: 6. hónap | J32: 7. hónap | K32: 8. hónap | L32: 9. hónap | M32: 10. hónap | N32: 11. hónap | O32: 12. hónap
B33: ÜGYNÖK/BRÓKER (A TELJES ÉRTÉKESÍTÉS %-A) | D33: 10% | E33: 10% | F33: 10% | G33: 10% | H33: 10% | I33: 10% | J33: 10% | K33: 10% | L33: 10% | M33: 10% | N33: 10% | O33: 10%
B34: Kommunikáció | D34: 50 | E34: 50 | F34: 50 | G34: 50 | H34: 50 | I34: 50 | J34: 50 | K34: 50 | L34: 50 | M34: 50 | N34: 50 | O34: 50 | Q34: =SUM('Csatornamarketing költségvetése'!$D34:$O34) -> 600.00
B35: Oktatás | D35: 250.00 | E35: 250.00 | F35: 250.00 | G35: 250.00 | H35: 250.00 | I35: 250.00 | J35: 250.00 | K35: 250.00 | L35: 250.00 | M35: 250.00 | N35: 250.00 | O35: 250.00 | Q35: =SUM('Csatornamarketing költségvetése'!$D35:$O35) -> 3,000.00
B36: Promóciók | D36: 600.00 | E36: 600.00 | F36: 600.00 | G36: 600.00 | H36: 600.00 | I36: 600.00 | J36: 600.00 | K36: 600.00 | L36: 600.00 | M36: 600.00 | N36: 600.00 | O36: 600.00 | Q36: =SUM('Csatornamarketing költségvetése'!$D36:$O36) -> 7,200.00
B37: Engedmények | C37: 10.00% | D37: =D3*D33*$C$37 -> 7.50 | E37: 2.00 | F37: 5.00 | G37: 15.00 | H37: 12.00 | I37: 15.00 | J37: 15.00 | K37: 18.00 | L37: 20.00 | M37: 20.00 | N37: 20.00 | O37: 20.00 | Q37: =SUM('Csatornamarketing költségvetése'!$D37:$O37) -> 169.50
B38: Jutalék (az ügynök értékesítésének %-a) | C38: 10.00% | D38: =D3*D33*$C$38 -> 7.50 | E38: 2.00 | F38: 5.00 | G38: 15.00 | H38: 12.00 | I38: 15.00 | J38: 15.00 | K38: 18.00 | L38: 20.00 | M38: 20.00 | N38: 20.00 | O38: 20.00 | Q38: =SUM('Csatornamarketing költségvetése'!$D38:$O38) -> 169.50
B39: Ügynök/bróker összesen (000) Ft | D39: =SUM(D34:D38) -> 915.00 | E39: =SUM(E34:E38) -> 904.00 | F39: 910.00 | G39: 930.00 | H39: 924.00 | I39: 930.00 | J39: 930.00 | K39: 936.00 | L39: 940.00 | M39: 940.00 | N39: 940.00 | O39: 940.00 | Q39: =SUM(Q34:Q38) -> 11,139.00
A40: A jobbra lévő cellában kezdődő Forgalmazók táblázatban adhatja meg az adatokat. A táblázat végén a sablon automatikusan kiszámítja a forgalmazó teljes havi értékesítését, a Q46 cellában pedig az éves összesen. Az S46 cellában automatikusan frissül az értékgörbe. A következő utasítás az A47 cellában található. | B40: Forgalmazó – tételek | C40: Arány | D40: 1. hónap | E40: 2. hónap | F40: 3. hónap | G40: 4. hónap | H40: 5. hónap | I40: 6. hónap | J40: 7. hónap | K40: 8. hónap | L40: 9. hónap | M40: 10. hónap | N40: 11. hónap | O40: 12. hónap
B41: FORGALMAZÓK (A TELJES ÉRTÉKESÍTÉS %-A) | D41: 0% | E41: 0% | F41: 0% | G41: 0% | H41: 0% | I41: 15% | J41: 20% | K41: 40% | L41: 40% | M41: 40% | N41: 40% | O41: 40%
B42: Kommunikáció | D42: 50 | E42: 50 | F42: 50 | G42: 50 | H42: 50 | I42: 50 | J42: 50 | K42: 50 | L42: 50 | M42: 50 | N42: 50 | O42: 50 | Q42: =SUM('Csatornamarketing költségvetése'!$D42:$O42) -> 600.00
B43: Oktatás | D43: 250.00 | E43: 250.00 | F43: 250.00 | G43: 250.00 | H43: 250.00 | I43: 250.00 | J43: 250.00 | K43: 250.00 | L43: 250.00 | M43: 250.00 | N43: 250.00 | O43: 250.00 | Q43: =SUM(Forgalmazók[[#This Row],[1. hónap]:[12. hónap]]) -> 3,000.00
B44: Promóciók | D44: 600.00 | E44: 600.00 | F44: 600.00 | G44: 600.00 | H44: 600.00 | I44: 600.00 | J44: 600.00 | K44: 600.00 | L44: 600.00 | M44: 600.00 | N44: 600.00 | O44: 600.00 | Q44: =SUM(Forgalmazók[[#This Row],[1. hónap]:[12. hónap]]) -> 7,200.00
B45: Jutalék/Engedmények (a forgalmazók értékesítésének %-a) | C45: 15.00% | D45: =D3*D41*$C$45 -> 0 | E45: 0 | F45: 0 | G45: 0 | H45: 0 | I45: 33.75 | J45: 45 | K45: 108 | L45: 120 | M45: 120 | N45: 120 | O45: 120 | Q45: =SUM(Forgalmazók[[#This Row],[1. hónap]:[12. hónap]]) -> 666.75
B46: Forgalmazó összesen (000) Ft | D46: =SUM(D42:D45) -> 900.00 | E46: =SUM(E42:E45) -> 900.00 | F46: 900.00 | G46: 900.00 | H46: 900.00 | I46: 933.75 | J46: 945.00 | K46: 1,008.00 | L46: 1,020.00 | M46: 1,020.00 | N46: 1,020.00 | O46: 1,020.00 | Q46: =SUM(Q42:Q45) -> 11,466.75
A47: A jobbra lévő cellában kezdődő Kiskereskedő táblázatban adhatja meg az adatokat. A táblázat végén a sablon automatikusan kiszámítja a kiskereskedő teljes havi értékesítését, a Q53 cellában pedig az éves összesen. Az S53 cellában automatikusan frissül az értékgörbe. A következő utasítás az A54 cellában található. | B47: Kiskereskedő – tételek | C47: Arány | D47: 1. hónap | E47: 2. hónap | F47: 3. hónap | G47: 4. hónap | H47: 5. hónap | I47: 6. hónap | J47: 7. hónap | K47: 8. hónap | L47: 9. hónap | M47: 10. hónap | N47: 11. hónap | O47: 12. hónap
B48: KISKERESKEDŐ (A TELJES ÉRTÉKESÍTÉS %-A) | D48: 0% | E48: 0% | F48: 25% | G48: 60% | H48: 67% | I48: 60% | J48: 60% | K48: 50% | L48: 30% | M48: 30% | N48: 30% | O48: 30%
B49: Kommunikáció | D49: 50 | E49: 50 | F49: 50 | G49: 50 | H49: 50 | I49: 50 | J49: 50 | K49: 50 | L49: 50 | M49: 50 | N49: 50 | O49: 50
B50: Oktatás | D50: 250.00 | E50: 250.00 | F50: 250.00 | G50: 250.00 | H50: 250.00 | I50: 250.00 | J50: 250.00 | K50: 250.00 | L50: 250.00 | M50: 250.00 | N50: 250.00 | O50: 250.00 | Q50: =SUM('Csatornamarketing költségvetése'!$D49:$O49) -> 600.00
B51: Promóciók | D51: 600.00 | E51: 600.00 | F51: 600.00 | G51: 600.00 | H51: 600.00 | I51: 600.00 | J51: 600.00 | K51: 600.00 | L51: 600.00 | M51: 600.00 | N51: 600.00 | O51: 600.00 | Q51: =SUM('Csatornamarketing költségvetése'!$D50:$O50) -> 3,000.00
B52: Jutalék/Engedmények (kiskereskedelmi értékesítés %-a) | C52: 10.00% | D52: =D3*D48*$C$52 -> 0 | E52: 0 | F52: 12.5 | G52: 90 | H52: 80.4 | I52: 90 | J52: 90 | K52: 90 | L52: 60 | M52: 60 | N52: 60 | O52: 60 | Q52: =SUM('Csatornamarketing költségvetése'!$D52:$O52) -> 692.90
B53: Kiskereskedő összesen (000) Ft | D53: =SUM(D49:D52) -> 900.00 | E53: =SUM(E49:E52) -> 900.00 | F53: 912.50 | G53: 990.00 | H53: 980.40 | I53: 990.00 | J53: 990.00 | K53: 990.00 | L53: 960.00 | M53: 960.00 | N53: 960.00 | O53: 960.00 | Q53: =SUM(Q50:Q52) -> 4,292.90
A54: A jobbra kezdődő Ügyfélszerzés és -megőrzés táblázatban adhatja meg az adatokat. A táblázat végén a sablon automatikusan kiszámítja az ügyfélszerzés és -megőrzés teljes havi értékesítését, a Q59 cellában pedig az éves összesen. Az S59 cellában automatikusan frissül az értékgörbe. A következő utasítás az A60 cellában található. | B54: Ügyfélszerzés és -megőrzés – tételek | C54: Arány | D54: 1. hónap | E54: 2. hónap | F54: 3. hónap | G54: 4. hónap | H54: 5. hónap | I54: 6. hónap | J54: 7. hónap | K54: 8. hónap | L54: 9. hónap | M54: 10. hónap | N54: 11. hónap | O54: 12. hónap
B55: ÜGYFÉLSZERZÉS ÉS -MEGŐRZÉS
B56: Emberi erőforrások | D56: 50 | E56: 50 | F56: 50 | G56: 50 | H56: 50 | I56: 50 | J56: 50 | K56: 50 | L56: 50 | M56: 50 | N56: 50 | O56: 50 | Q56: =SUM('Csatornamarketing költségvetése'!$D56:$O56) -> 600.00
B57: Kommunikáció | D57: 250.00 | E57: 250.00 | F57: 250.00 | G57: 250.00 | H57: 250.00 | I57: 250.00 | J57: 250.00 | K57: 250.00 | L57: 250.00 | M57: 250.00 | N57: 250.00 | O57: 250.00 | Q57: =SUM('Csatornamarketing költségvetése'!$D57:$O57) -> 3,000.00
B58: Promóciók/Kuponok | D58: 600 | E58: 600 | F58: 600 | G58: 600 | H58: 600 | I58: 600 | J58: 600 | K58: 600 | L58: 600 | M58: 600 | N58: 600 | O58: 600 | Q58: =SUM('Csatornamarketing költségvetése'!$D58:$O58) -> 7,200.00
B59: Ügyfélszerzés és -megőrzés összesen (000) Ft | D59: =SUM(D56:D58) -> 900.00 | E59: =SUM(E56:E58) -> 900.00 | F59: 900.00 | G59: 900.00 | H59: 900.00 | I59: 900.00 | J59: 900.00 | K59: 900.00 | L59: 900.00 | M59: 900.00 | N59: 900.00 | O59: 900.00 | Q59: =SUM(Q56:Q58) -> 10,800.00
A60: A jobbra lévő cellában kezdődő Egyéb kiadások táblázatban adhatja meg az adatokat. A táblázat végén a sablon automatikusan kiszámítja az egyéb kiadások teljes havi értékesítését, a Q65 cellában pedig az éves összesen. Az S65 cellában automatikusan frissül az értékgörbe. A következő utasítás az A67 cellában található. | B60: Egyéb kiadások – tételek | C60: Arány | D60: 1. hónap | E60: 2. hónap | F60: 3. hónap | G60: 4. hónap | H60: 5. hónap | I60: 6. hónap | J60: 7. hónap | K60: 8. hónap | L60: 9. hónap | M60: 10. hónap | N60: 11. hónap | O60: 12. hónap
B61: EGYÉB KIADÁSOK
B62: Utazás | D62: 50 | E62: 50 | F62: 50 | G62: 50 | H62: 50 | I62: 50 | J62: 50 | K62: 50 | L62: 50 | M62: 50 | N62: 50 | O62: 50 | Q62: =SUM('Csatornamarketing költségvetése'!$D62:$O62) -> 600.00
B63: Infrastruktúra (számítógép, telefon stb.) | D63: 250.00 | E63: 250.00 | F63: 250.00 | G63: 250.00 | H63: 250.00 | I63: 250.00 | J63: 250.00 | K63: 250.00 | L63: 250.00 | M63: 250.00 | N63: 250.00 | O63: 250.00 | Q63: =SUM('Csatornamarketing költségvetése'!$D63:$O63) -> 3,000.00
B64: Csatornatámogatás | D64: 600 | E64: 600 | F64: 600 | G64: 600 | H64: 600 | I64: 600 | J64: 600 | K64: 600 | L64: 600 | M64: 600 | N64: 600 | O64: 600 | Q64: =SUM('Csatornamarketing költségvetése'!$D64:$O64) -> 7,200.00
B65: Egyéb kiadások összesen (000) Ft | D65: =SUM(D62:D64) -> 900.00 | E65: =SUM(E62:E64) -> 900.00 | F65: 900.00 | G65: 900.00 | H65: 900.00 | I65: 900.00 | J65: 900.00 | K65: 900.00 | L65: 900.00 | M65: 900.00 | N65: 900.00 | O65: 900.00 | Q65: =SUM(Q62:Q64) -> 10,800.00
A67: Ebben a sorban a sablon automatikusan kiszámítja a teljes marketing-költségvetést, a D67–O67 cellákban, valamint az éves végösszeget a Q67 cellában. Az S67 cellában automatikusan frissül az értékgörbe. | B67: TELJES MARKETING-KÖLTSÉGVETÉS: | D67: =SUM(EgyébKiadások[[#Totals],[1. hónap]],Személyautó[[#Totals],[1. hónap]],Kiskereskedő[[#Totals],[1. hónap]],Forgalmazók[[#Totals],[1. hónap]],ÜgynökÉsBróker[[#Totals],[1. hónap]],D31) -> 6,354.00 | E67: =SUM(EgyébKiadások[[#Totals],[2. hónap]],Személyautó[[#Totals],[2. hónap]],Kiskereskedő[[#Totals],[2. hónap]],Forgalmazók[[#Totals],[2. hónap]],ÜgynökÉsBróker[[#Totals],[2. hónap]],E31) -> 5,785.85 | F67: =SUM(EgyébKiadások[[#Totals],[3. hónap]],Személyautó[[#Totals],[3. hónap]],Kiskereskedő[[#Totals],[3. hónap]],Forgalmazók[[#Totals],[3. hónap]],ÜgynökÉsBróker[[#Totals],[3. hónap]],F31) -> 5,834.44 | G67: =SUM(EgyébKiadások[[#Totals],[4. hónap]],Személyautó[[#Totals],[4. hónap]],Kiskereskedő[[#Totals],[4. hónap]],Forgalmazók[[#Totals],[4. hónap]],ÜgynökÉsBróker[[#Totals],[4. hónap]],G31) -> 5,902.05 | H67: =SUM(EgyébKiadások[[#Totals],[5. hónap]],Személyautó[[#Totals],[5. hónap]],Kiskereskedő[[#Totals],[5. hónap]],Forgalmazók[[#Totals],[5. hónap]],ÜgynökÉsBróker[[#Totals],[5. hónap]],H31) -> 5,916.35 | I67: =SUM(EgyébKiadások[[#Totals],[6. hónap]],Személyautó[[#Totals],[6. hónap]],Kiskereskedő[[#Totals],[6. hónap]],Forgalmazók[[#Totals],[6. hónap]],ÜgynökÉsBróker[[#Totals],[6. hónap]],I31) -> 5,935.69 | J67: =SUM(EgyébKiadások[[#Totals],[7. hónap]],Személyautó[[#Totals],[7. hónap]],Kiskereskedő[[#Totals],[7. hónap]],Forgalmazók[[#Totals],[7. hónap]],ÜgynökÉsBróker[[#Totals],[7. hónap]],J31) -> 5,976.90 | K67: =SUM(EgyébKiadások[[#Totals],[8. hónap]],Személyautó[[#Totals],[8. hónap]],Kiskereskedő[[#Totals],[8. hónap]],Forgalmazók[[#Totals],[8. hónap]],ÜgynökÉsBróker[[#Totals],[8. hónap]],K31) -> 6,015.84 | L67: =SUM(EgyébKiadások[[#Totals],[9. hónap]],Személyautó[[#Totals],[9. hónap]],Kiskereskedő[[#Totals],[9. hónap]],Forgalmazók[[#Totals],[9. hónap]],ÜgynökÉsBróker[[#Totals],[9. hónap]],L31) -> 6,031.80 | M67: =SUM(EgyébKiadások[[#Totals],[10. hónap]],Személyautó[[#Totals],[10. hónap]],Kiskereskedő[[#Totals],[10. hónap]],Forgalmazók[[#Totals],[10. hónap]],ÜgynökÉsBróker[[#Totals],[10. hónap]],M31) -> 6,001.80 | N67: =SUM(EgyébKiadások[[#Totals],[11. hónap]],Személyautó[[#Totals],[11. hónap]],Kiskereskedő[[#Totals],[11. hónap]],Forgalmazók[[#Totals],[11. hónap]],ÜgynökÉsBróker[[#Totals],[11. hónap]],N31) -> 6,056.80 | O67: =SUM(EgyébKiadások[[#Totals],[12. hónap]],Személyautó[[#Totals],[12. hónap]],Kiskereskedő[[#Totals],[12. hónap]],Forgalmazók[[#Totals],[12. hónap]],ÜgynökÉsBróker[[#Totals],[12. hónap]],O31) -> 6,001.80 | Q67: =SUM(D67:O67) -> 71,813.31
